bitfinex/quotes_SOLUSD_20220207
["timestamp","ask_amount","ask_price","bid_price","bid_amount"]
[1644266679050,6.0,119.83,119.73,59.4779676]
[1644266679346,12.5214,119.85,119.74,9.97]
[1644266679549,12.5214,119.85,119.75,6.14045]
[1644266679748,12.5214,119.85,119.76,9.97]
[1644266679949,4.173,119.89,119.77,57.62578085]
[1644266680148,12.5185,119.88,119.77,106.77564362]
[1644266680348,12.5185,119.88,119.78,9.97]
[1644266680551,12.5185,119.88,119.79,6.1384]
[1644266680750,12.5185,119.88,119.79,18.48966277]
[1644266680950,12.5185,119.88,119.8,38.48644779]
[1644266681155,52.5229382,119.88,119.81,6.13737]
[1644266681354,12.5185,119.88,119.81,6.13737]
[1644266681954,12.7685,119.88,119.81,6.13737]
[1644266682256,12.7685,119.88,119.82,47.79922447]
[1644266682456,57.752626,119.88,119.82,47.79922447]
[1644266682657,12.7685,119.88,119.82,47.79922447]
[1644266683758,54.80738237,119.88,119.82,47.79922447]
[1644266684161,12.7685,119.88,119.82,47.79922447]
[1644266684560,18.7685,119.88,119.82,47.79922447]
[1644266686462,40.47461118,119.87,119.82,47.79922447]
[1644266686862,53.24381118,119.87,119.82,47.79922447]
[1644266687664,12.7692,119.87,119.82,47.79922447]
[1644266688763,12.5192,119.87,119.82,47.79922447]
[1644266689765,18.5173,119.88,119.82,47.79922447]
[1644266690164,18.7673,119.88,119.82,47.79922447]
[1644266691269,6.25,119.88,119.82,48.04922447]
[1644266691468,0.25,119.88,119.83,6.13635]
[1644266691972,6.03970719,119.92,119.83,6.38635]
[1644266692165,43.42333283,119.92,119.84,38.00472134]
[1644266692367,43.42333283,119.92,119.84,44.14056134]
[1644266692568,55.93733283,119.92,119.84,44.14056134]
[1644266693269,18.764,119.92,119.84,44.14056134]
[1644266693468,12.514,119.92,119.84,54.07056134]
[1644266694267,12.514,119.92,119.84,64.04056134]
[1644266694668,12.764,119.92,119.84,64.04056134]
[1644266694869,12.764,119.92,119.84,76.55356134]
[1644266695668,0.25,119.92,119.84,76.55356134]
[1644266696069,61.68131939,119.93,119.84,76.55356134]
[1644266696269,61.6416122,119.93,119.84,76.55356134]
[1644266697472,61.6416122,119.93,119.84,66.58356134]
[1644266697674,61.6416122,119.93,119.84,44.39056134]
[1644266698195,61.6416122,119.93,119.84,44.14056134]
[1644266699893,65.8116122,119.93,119.84,6.13584]
[1644266700096,77.92844077,119.93,119.79,9.97]
[1644266700294,46.69681906,119.92,119.77,12.5205]
[1644266700496,12.5211,119.88,119.76,9.97]
[1644266700697,46.6934,119.88,119.75,9.97]
[1644266700997,53.73816187,119.87,119.73,43.59234616]
[1644266701196,4.173,119.86,119.73,43.59234616]
[1644266701399,35.73215868,119.85,119.73,43.59234616]
[1644266701595,45.63880878,119.83,119.73,43.59234616]
[1644266701895,12.5307,119.8,119.67,22.5001]
[1644266702098,18.5307,119.8,119.67,22.5001]
[1644266702298,20.92752857,119.8,119.67,22.7501]
[1644266702706,9.97,119.79,119.67,12.5301]
[1644266702906,12.5318,119.76,119.67,44.88185762]
[1644266703101,44.08375672,119.75,119.67,44.88185762]
[1644266703296,44.33375672,119.75,119.67,44.88185762]
[1644266703497,50.33375672,119.75,119.67,44.88185762]
[1644266703899,12.5338,119.73,119.64,0.024]
[1644266704096,18.5338,119.73,119.63,23.6518]
[1644266704297,18.7838,119.73,119.63,23.6518]
[1644266704696,18.7838,119.73,119.63,25.77761517]
[1644266704895,39.49540751,119.72,119.64,45.09854076]
[1644266705096,45.49540751,119.72,119.64,0.024]
[1644266705298,12.5363,119.71,119.64,0.024]
[1644266705498,12.5363,119.71,119.63,0.024]
[1644266705697,18.7863,119.71,119.61,1.20934604]
[1644266706201,36.90368028,119.7,119.62,46.80094665]
[1644266706697,36.90368028,119.7,119.62,48.92676182]
[1644266706698,37.15368028,119.7,119.62,48.92676182]
[1644266706903,36.90368028,119.7,119.62,48.92676182]
[1644266707296,9.97,119.75,119.62,48.92676182]
[1644266707497,12.5322,119.76,119.63,0.024]
[1644266707801,24.7211,119.8,119.64,9.97]
[1644266707999,24.7211,119.8,119.65,0.024]
[1644266708199,34.6911,119.8,119.66,9.97]
[1644266708398,51.10640597,119.79,119.65,2.14981517]
[1644266708603,12.5327,119.76,119.65,0.024]
[1644266708799,12.7827,119.76,119.65,0.25]
[1644266708998,18.7827,119.76,119.65,0.274]
[1644266709299,22.9587,119.76,119.66,2.12581517]
[1644266709499,34.48091339,119.75,119.67,36.60728829]
[1644266709699,34.73091339,119.75,119.67,36.60728829]
[1644266709903,47.26461339,119.75,119.67,36.60728829]
[1644266710100,53.26461339,119.75,119.67,36.60728829]
[1644266710306,40.73091339,119.75,119.67,36.60728829]
[1644266710704,40.73091339,119.75,119.67,36.85728829]
[1644266710905,34.23091339,119.75,119.67,36.60728829]
[1644266711107,40.23091339,119.75,119.67,36.60728829]
[1644266712207,40.23091339,119.75,119.67,36.85728829]
[1644266713006,34.23091339,119.75,119.67,36.60728829]
[1644266713612,40.23091339,119.75,119.67,36.60728829]
[1644266713812,34.23091339,119.75,119.67,36.85728829]
[1644266714812,0.25,119.75,119.67,36.85728829]
[1644266715014,0.25,119.75,119.68,12.09581517]
[1644266715214,6.0,119.8,119.68,11.84581517]
[1644266715418,6.0,119.8,119.69,2.12581517]
[1644266715614,0.25,119.8,119.69,12.09581517]
[1644266715817,47.57825911,119.8,119.7,37.35180538]
[1644266716419,53.57825911,119.8,119.7,36.85180538]
[1644266716618,53.07825911,119.8,119.7,36.85180538]
[1644266717718,65.60685911,119.8,119.7,36.85180538]
[1644266718218,65.85685911,119.8,119.7,37.10180538]
[1644266719019,65.85685911,119.8,119.7,36.85180538]
[1644266719229,65.85685911,119.8,119.7,37.10180538]
[1644266719824,65.85685911,119.8,119.7,36.85180538]
[1644266720828,65.85685911,119.8,119.7,37.10180538]
[1644266721228,65.85685911,119.8,119.7,36.85180538]
[1644266721828,68.00368768,119.8,119.7,36.85180538]
[1644266722729,68.00368768,119.8,119.7,37.10180538]
[1644266722930,72.17868768,119.8,119.7,37.10180538]
[1644266724038,68.00368768,119.8,119.7,37.10180538]
[1644266725252,72.17868768,119.8,119.7,37.10180538]
[1644266726150,71.67868768,119.8,119.7,37.10180538]
[1644266726351,67.50368768,119.8,119.7,37.10180538]
[1644266726552,67.50368768,119.8,119.68,0.024]
[1644266726752,12.5325,119.76,119.68,0.024]
[1644266727051,18.5325,119.76,119.67,54.3925]
[1644266727252,18.7825,119.76,119.67,54.3925]
[1644266727452,46.36575702,119.75,119.68,45.00236826]
[1644266727652,52.36575702,119.75,119.68,45.00236826]
[1644266727853,52.61575702,119.75,119.68,45.00236826]
[1644266728053,46.61575702,119.75,119.68,45.00236826]
[1644266728254,46.61575702,119.75,119.68,45.25236826]
[1644266728753,46.61575702,119.75,119.68,45.00236826]
[1644266729154,0.25,119.75,119.68,45.25236826]
[1644266729358,0.25,119.75,119.68,67.75076826]
[1644266729566,30.8157,119.8,119.68,67.75076826]
[1644266729760,5.35113266,119.83,119.69,0.024]
[1644266729960,1.17613266,119.81,119.69,23.8248]
[1644266730159,47.09818188,119.8,119.7,57.22888327]
[1644266730566,47.09818188,119.8,119.7,63.47888327]
[1644266730763,47.09818188,119.8,119.7,63.50288327]
[1644266730961,47.09818188,119.8,119.71,12.525]
[1644266731165,47.34818188,119.8,119.7,61.3770681]
[1644266731362,53.34818188,119.8,119.7,55.1270681]
[1644266731563,55.49501045,119.8,119.7,45.1570681]
[1644266731963,68.02371045,119.8,119.7,45.1570681]
[1644266732163,65.87688188,119.8,119.7,45.4070681]
[1644266732364,65.87688188,119.8,119.7,0.024]
[1644266732566,2.14682857,119.79,119.7,0.024]
[1644266732763,6.57182857,119.79,119.69,0.024]
[1644266732964,3.57296123,119.79,119.69,0.024]
[1644266733162,14.67772857,119.78,119.69,0.024]
[1644266733372,47.93639963,119.76,119.69,0.024]
[1644266733564,53.93639963,119.76,119.68,37.38937958]
[1644266733964,54.18639963,119.76,119.68,37.38937958]
[1644266734864,4.176,119.79,119.68,39.51519475]
[1644266735067,1.17613266,119.8,119.69,9.97]
[1644266735265,1.17613266,119.82,119.7,0.024]
[1644266735568,7.17613266,119.82,119.7,37.08976121]
[1644266735864,45.16567714,119.81,119.71,47.55592034]
[1644266736064,45.16567714,119.81,119.71,53.55592034]
[1644266736269,45.16567714,119.81,119.71,53.80592034]
[1644266736465,45.41567714,119.81,119.71,53.80592034]
[1644266737967,57.94337714,119.81,119.71,53.80592034]
[1644266738267,45.41567714,119.81,119.71,66.33132034]
[1644266738466,45.41567714,119.81,119.71,67.51666638]
[1644266738869,45.41567714,119.81,119.71,66.33132034]
[1644266739569,1.17613266,119.83,119.72,9.97]
[1644266739769,0.25,119.81,119.72,58.03714604]
[1644266739971,0.25,119.81,119.74,12.5216]
[1644266740168,0.25,119.81,119.74,18.5216]
[1644266740369,0.25,119.81,119.74,41.6341]
[1644266740569,0.25,119.81,119.75,40.15032035]
[1644266740770,42.12148671,119.84,119.75,40.40032035]
[1644266741573,42.12148671,119.84,119.75,40.15032035]
[1644266741971,42.12148671,119.84,119.75,40.40032035]
[1644266742171,42.12148671,119.84,119.75,40.15032035]
[1644266742573,60.64538671,119.84,119.75,40.15032035]
[1644266743182,60.64538671,119.84,119.74,22.8625]
[1644266743375,64.81838671,119.84,119.74,22.8625]
[1644266743574,65.99451937,119.84,119.72,23.7693]
[1644266744177,65.99451937,119.84,119.72,59.00454204]
[1644266744576,65.99451937,119.84,119.72,59.25454204]
[1644266744776,75.71451937,119.84,119.72,59.25454204]
[1644266745275,75.71451937,119.84,119.72,24.0193]
[1644266745477,1.17613266,119.83,119.71,0.024]
[1644266745676,12.5301,119.8,119.71,0.024]
[1644266745878,4.175,119.79,119.71,0.024]
[1644266746078,12.32182857,119.79,119.69,1.20934604]
[1644266746277,34.18359848,119.78,119.69,42.17211018]
[1644266746481,36.33042705,119.78,119.69,42.17211018]
[1644266746676,42.58042705,119.78,119.69,42.17211018]
[1644266747579,14.67952857,119.77,119.69,0.024]
[1644266747781,14.146,119.76,119.64,0.024]
[1644266747980,38.05138428,119.76,119.66,0.024]
[1644266748179,2.14682857,119.75,119.64,0.024]
[1644266748381,14.146,119.74,119.64,0.024]
[1644266748582,12.5384,119.73,119.64,0.024]
[1644266748779,14.146,119.72,119.63,1.6364251]
[1644266748983,16.29282857,119.72,119.63,1.6364251]
[1644266749179,22.29282857,119.72,119.63,1.6364251]
[1644266749381,2.14682857,119.71,119.63,1.6364251]
[1644266749580,4.178,119.7,119.63,1.6124251]
[1644266749780,25.2505,119.7,119.63,1.6124251]
[1644266749979,12.11682857,119.69,119.63,1.6124251]
[1644266750180,4.178,119.68,119.63,1.6124251]
[1644266750380,6.32482857,119.68,119.63,1.6124251]
[1644266750679,2.14682857,119.67,119.58,0.024]
[1644266750881,12.544,119.65,119.59,0.024]
[1644266751081,18.544,119.65,119.57,0.024]
[1644266751281,12.544,119.65,119.57,0.024]
[1644266751885,0.25,119.65,119.56,12.5416]
[1644266752085,0.25,119.65,119.56,19.75094604]
[1644266752283,0.25,119.67,119.56,29.97094604]
[1644266752484,0.25,119.67,119.57,0.024]
[1644266752785,16.22,119.71,119.57,0.024]
[1644266752987,20.399,119.71,119.57,0.024]
[1644266753585,20.149,119.71,119.57,0.024]
[1644266753991,12.5399,119.68,119.57,12.5639]
[1644266754188,12.5399,119.68,119.58,0.024]
[1644266754589,18.5399,119.68,119.58,0.024]
[1644266754790,20.68672857,119.68,119.58,0.024]
[1644266755394,18.5399,119.68,119.58,0.024]
[1644266755691,18.7899,119.68,119.58,0.024]
[1644266756390,18.7899,119.68,119.56,0.024]
[1644266756596,35.18292648,119.67,119.56,43.32049335]
[1644266756791,35.43292648,119.67,119.57,12.5647]
[1644266756995,53.97382648,119.67,119.57,0.024]
[1644266757191,53.97382648,119.67,119.57,6.274]
[1644266757593,53.97382648,119.67,119.57,0.274]
[1644266758220,53.97382648,119.67,119.57,0.024]
[1644266759226,58.15282648,119.67,119.57,0.024]
[1644266759421,2.14682857,119.66,119.57,0.024]
[1644266759720,2.14682857,119.66,119.55,48.096]
[1644266759721,12.5466,119.64,119.55,0.024]
[1644266759922,68.46,119.64,119.51,0.024]
[1644266760124,40.18584892,119.63,119.51,45.40713498]
[1644266760524,59.37784892,119.63,119.51,51.40713498]
[1644266761024,59.37784892,119.63,119.51,51.65713498]
[1644266761525,12.5497,119.6,119.51,51.65713498]
[1644266761825,40.9951945,119.59,119.51,51.65713498]
[1644266762025,40.9951945,119.59,119.51,51.63313498]
[1644266762227,46.9951945,119.59,119.5,9.994]
[1644266762432,46.9951945,119.59,119.5,0.024]
[1644266762625,69.94732307,119.59,119.5,0.024]
[1644266763027,67.8004945,119.59,119.5,0.024]
[1644266763229,67.8004945,119.59,119.5,37.75746206]
[1644266763435,59.7944945,119.59,119.5,39.884127]
[1644266763829,59.7944945,119.59,119.5,40.134127]
[1644266764030,59.7944945,119.59,119.5,38.00746206]
[1644266765332,59.7944945,119.59,119.5,0.024]
[1644266765934,69.7644945,119.59,119.5,0.024]
[1644266766133,48.0548,119.58,119.48,0.024]
[1644266766332,12.5535,119.55,119.46,37.88918197]
[1644266766534,47.68650286,119.55,119.46,37.91318197]
[1644266766734,47.93650286,119.55,119.46,46.03984691]
[1644266766934,6.0,119.59,119.46,46.28984691]
[1644266767139,4.183,119.61,119.47,9.994]
[1644266767334,9.97,119.63,119.48,0.024]
[1644266767533,6.0,119.61,119.48,12.12066494]
[1644266767834,45.73689849,119.62,119.5,42.07711492]
[1644266768034,45.73689849,119.62,119.51,0.024]
[1644266768234,45.98689849,119.62,119.51,2.15066494]
[1644266768434,45.98689849,119.62,119.52,38.17268104]
[1644266768641,58.53359849,119.62,119.52,40.29997283]
[1644266768837,58.53359849,119.62,119.52,40.54997283]
[1644266769038,45.98689849,119.62,119.53,2.12729179]
[1644266769239,45.98689849,119.62,119.54,37.22037558]
[1644266769661,45.98689849,119.62,119.54,37.47037558]
[1644266771064,45.98689849,119.62,119.54,0.25]
[1644266771262,45.98689849,119.62,119.53,0.024]
[1644266771475,51.98689849,119.62,119.52,0.024]
[1644266771662,4.181,119.61,119.5,0.024]
[1644266772061,44.05175278,119.6,119.5,43.58949466]
[1644266772265,44.30175278,119.6,119.51,0.024]
[1644266772460,50.30175278,119.6,119.5,43.58949466]
[1644266773065,43.75193674,119.58,119.5,43.58949466]
[1644266773263,44.00193674,119.58,119.5,43.83949466]
[1644266773864,44.00193674,119.58,119.5,43.58949466]
[1644266775063,4.182,119.65,119.5,43.58949466]
[1644266775064,4.182,119.63,119.5,51.96678645]
[1644266775263,0.25,119.63,119.51,57.1263]
[1644266775663,0.25,119.63,119.52,2.12729179]
[1644266775864,67.6883,119.65,119.52,2.12729179]
[1644266776064,41.49578273,119.64,119.53,45.8838701]
[1644266776264,41.49578273,119.64,119.54,0.024]
[1644266776464,47.49578273,119.64,119.54,0.024]
[1644266777065,60.04088273,119.64,119.54,0.024]
[1644266777264,60.29088273,119.64,119.54,0.024]
[1644266779368,60.04088273,119.64,119.54,0.024]
[1644266779571,41.49578273,119.64,119.56,42.85732457]
[1644266779866,2.33661268,119.73,119.56,42.85732457]
[1644266779867,1.17613266,119.71,119.57,9.97]
[1644266780070,6.0,119.71,119.57,63.99489179]
[1644266780267,15.97,119.72,119.58,2.15129179]
[1644266780667,15.97,119.72,119.59,0.024]
[1644266780868,43.94732815,119.69,119.59,53.24527876]
[1644266781068,43.94732815,119.69,119.6,0.024]
[1644266781268,49.94732815,119.69,119.6,0.024]
[1644266781468,52.09415672,119.69,119.6,0.024]
[1644266781869,52.09415672,119.69,119.58,0.024]
[1644266781870,12.5441,119.66,119.58,0.024]
[1644266782071,18.5441,119.66,119.58,0.024]
[1644266782270,20.94092857,119.66,119.58,0.024]
[1644266782468,34.65554395,119.65,119.58,0.024]
[1644266782671,40.65554395,119.65,119.57,88.56450466]
[1644266782869,40.90554395,119.65,119.57,88.56450466]
[1644266783870,53.44954395,119.65,119.57,88.56450466]
[1644266784071,40.65554395,119.65,119.57,88.81450466]
[1644266784273,6.0,119.65,119.57,88.81450466]
[1644266784673,57.7743,119.7,119.57,88.81450466]
[1644266784971,12.5417,119.67,119.58,0.024]
[1644266785178,45.09390609,119.66,119.58,0.024]
[1644266785373,53.24073466,119.66,119.58,0.024]
[1644266786572,53.49073466,119.66,119.58,0.024]
[1644266787073,37.92626458,119.63,119.55,34.90815953]
[1644266787272,38.17626458,119.63,119.55,34.90815953]
[1644266787473,44.17626458,119.63,119.55,34.90815953]
[1644266788875,38.17626458,119.63,119.55,34.90815953]
[1644266789074,38.17626458,119.63,119.55,35.15815953]
[1644266789576,44.17626458,119.63,119.55,35.15815953]
[1644266789876,38.17626458,119.63,119.55,35.15815953]
[1644266790578,44.17626458,119.63,119.55,0.274]
[1644266790778,44.17626458,119.63,119.55,0.024]
[1644266791576,44.17626458,119.63,119.55,42.15565264]
[1644266791778,44.17626458,119.63,119.55,42.13165264]
[1644266791981,56.72166458,119.63,119.55,42.13165264]
[1644266792679,56.72166458,119.63,119.55,42.38165264]
[1644266793185,56.72166458,119.63,119.55,42.13165264]
[1644266793782,44.17626458,119.63,119.55,42.13165264]
[1644266794184,38.17626458,119.63,119.55,42.13165264]
[1644266794383,44.17626458,119.63,119.55,42.13165264]
[1644266796286,44.17626458,119.63,119.55,42.38165264]
[1644266796486,56.72126458,119.63,119.55,42.38165264]
[1644266799490,50.72126458,119.63,119.55,42.38165264]
[1644266799691,38.17626458,119.63,119.55,42.38165264]
[1644266800090,44.17626458,119.63,119.55,42.38165264]
[1644266800693,37.92626458,119.63,119.55,42.38165264]
[1644266800890,37.92626458,119.63,119.55,54.92475264]
[1644266801092,43.92626458,119.63,119.55,54.92475264]
[1644266801294,43.92626458,119.63,119.55,57.04647375]
[1644266801492,37.92626458,119.63,119.55,57.04647375]
[1644266802093,44.17626458,119.63,119.55,57.04647375]
[1644266802694,38.17626458,119.63,119.55,57.04647375]
[1644266802891,38.17626458,119.63,119.55,58.23181979]
[1644266803116,43.92626458,119.63,119.55,58.23181979]
[1644266803314,37.92626458,119.63,119.55,68.20181979]
[1644266803513,45.9168,119.66,119.56,1.18534604]
[1644266803713,6.25,119.66,119.57,12.5411]
[1644266803914,6.25,119.66,119.57,12.5651]
[1644266804212,6.25,119.66,119.57,12.8151]
[1644266804413,45.58759687,119.65,119.58,48.56200236]
[1644266804614,51.58759687,119.65,119.58,48.56200236]
[1644266804813,51.83759687,119.65,119.58,48.81200236]
[1644266805013,51.58759687,119.65,119.58,48.81200236]
[1644266805415,51.58759687,119.65,119.58,48.31200236]
[1644266805815,51.58759687,119.65,119.57,0.024]
[1644266806215,51.83759687,119.65,119.57,0.024]
[1644266806719,51.83759687,119.65,119.57,39.27345294]
[1644266807120,51.83759687,119.65,119.57,39.52345294]
[1644266809319,51.83759687,119.65,119.57,52.06455294]
[1644266810322,51.83759687,119.65,119.57,51.81455294]
[1644266810523,64.37999687,119.65,119.57,39.52345294]
[1644266810921,64.37999687,119.65,119.57,0.024]
[1644266813824,87.63899687,119.65,119.55,0.274]
[1644266814025,87.63899687,119.65,119.55,1.45934604]
[1644266814623,87.63899687,119.65,119.55,48.175347]
[1644266814824,90.9619581,119.65,119.55,48.175347]
[1644266815025,90.9619581,119.65,119.55,46.99000096]
[1644266815231,88.81512953,119.65,119.55,46.99000096]
[1644266815426,87.63899687,119.65,119.55,46.99000096]
[1644266816027,87.63899687,119.65,119.55,48.425347]
[1644266816328,87.38899687,119.65,119.55,48.425347]
[1644266817731,87.63899687,119.65,119.55,48.425347]
[1644266818337,89.78582544,119.65,119.55,1.20934604]
[1644266818531,103.93582544,119.65,119.55,0.024]
[1644266818730,105.1119581,119.65,119.55,0.024]
[1644266818933,1.17613266,119.64,119.55,0.024]
[1644266819233,45.16990667,119.63,119.55,0.024]
[1644266819430,42.97121979,119.61,119.53,49.1733]
[1644266819630,48.97121979,119.61,119.53,49.1493]
[1644266819830,49.22121979,119.61,119.53,49.1493]
[1644266820030,49.22121979,119.61,119.54,38.25219605]
[1644266820234,49.22121979,119.61,119.53,0.024]
[1644266820433,12.5488,119.59,119.52,0.024]
[1644266820633,18.5488,119.59,119.51,1.18534604]
[1644266820836,18.7988,119.59,119.5,1.18534604]
[1644266821033,18.7988,119.59,119.5,1.20934604]
[1644266821232,35.94616998,119.58,119.51,35.56396148]
[1644266821435,35.94616998,119.58,119.51,38.87116799]
[1644266821632,35.94616998,119.58,119.52,1.18534604]
[1644266821832,35.94616998,119.58,119.53,34.33117018]
[1644266822833,35.94616998,119.58,119.53,34.58117018]
[1644266824133,35.94616998,119.58,119.53,0.25]
[1644266824333,35.94616998,119.58,119.52,1.43534604]
[1644266824536,54.49576998,119.58,119.51,3.55720651]
[1644266824735,54.49576998,119.58,119.52,2.12196099]
[1644266824937,54.49576998,119.58,119.51,1.43534604]
[1644266825134,54.49576998,119.58,119.51,47.78285077]
[1644266825638,54.49576998,119.58,119.51,53.78285077]
[1644266825840,54.49576998,119.58,119.52,2.12379553]
[1644266826038,54.49576998,119.58,119.53,41.23605162]
[1644266826240,48.49576998,119.58,119.53,40.98605162]
[1644266826438,48.49576998,119.58,119.53,43.10984715]
[1644266826644,54.49576998,119.58,119.53,43.10984715]
[1644266826839,48.49576998,119.58,119.53,43.10984715]
[1644266827239,48.49576998,119.58,119.53,2.37379553]
[1644266828141,12.5496,119.58,119.54,44.23198502]
[1644266828342,15.4506749,119.59,119.54,44.48198502]
[1644266828740,21.4506749,119.59,119.54,0.25]
[1644266828940,15.4506749,119.59,119.54,0.25]
[1644266829140,21.4506749,119.59,119.54,0.25]
[1644266829640,42.81102325,119.58,119.54,0.25]
[1644266829843,42.81102325,119.58,119.53,2.37379553]
[1644266830442,42.81102325,119.58,119.54,42.10457544]
[1644266830845,42.81102325,119.58,119.54,42.35457544]
[1644266833545,42.81102325,119.58,119.54,0.25]
[1644266833745,42.81102325,119.58,119.53,2.37379553]
[1644266834145,15.4506749,119.59,119.53,2.37379553]
[1644266835048,35.54194766,119.58,119.53,41.83044572]
[1644266835448,2.9024749,119.59,119.53,41.83044572]
[1644266835857,2.9024749,119.59,119.53,51.80044572]
[1644266836050,2.9024749,119.59,119.53,58.98579176]
[1644266836651,2.9024749,119.59,119.55,52.00458164]
[1644266837052,2.9024749,119.59,119.55,54.37851635]
[1644266837852,2.9024749,119.59,119.55,41.83591635]
[1644266838455,2.9024749,119.59,119.55,39.71198164]
[1644266839455,49.42128612,119.59,119.55,39.46198164]
[1644266840656,2.9024749,119.59,119.55,39.46198164]
[1644266840959,2.9024749,119.59,119.53,3.30928075]
[1644266841155,2.9024749,119.59,119.52,11.15534604]
[1644266841556,2.9024749,119.59,119.52,1.18534604]
[1644266842056,47.73477738,119.58,119.53,42.8928604]
[1644266842255,47.73477738,119.58,119.53,43.1428604]
[1644266842856,2.9024749,119.59,119.53,43.1428604]
[1644266843662,2.9024749,119.59,119.53,0.25]
[1644266843863,21.7012749,119.59,119.51,0.024]
[1644266844062,58.39050347,119.59,119.5,0.024]
[1644266844262,71.99850347,119.59,119.5,0.024]
[1644266844486,71.99850347,119.59,119.47,1.19319411]
[1644266844683,39.88863776,119.58,119.48,38.81568566]
[1644266844892,12.5517,119.56,119.48,38.79168566]
[1644266845084,50.50779308,119.56,119.48,38.81568566]
[1644266845284,50.75779308,119.56,119.48,38.81568566]
[1644266845485,50.75779308,119.56,119.48,38.79168566]
[1644266846188,50.75779308,119.56,119.48,44.79168566]
[1644266846384,50.75779308,119.56,119.48,38.79168566]
[1644266846584,50.75779308,119.56,119.48,44.79168566]
[1644266846784,50.75779308,119.56,119.48,38.79168566]
[1644266846985,50.50779308,119.56,119.48,38.79168566]
[1644266847386,50.50779308,119.56,119.48,44.79168566]
[1644266847586,12.5505,119.58,119.48,59.49072037]
[1644266847787,12.5505,119.58,119.48,59.74072037]
[1644266847985,18.5505,119.58,119.49,0.024]
[1644266848190,18.8005,119.58,119.49,0.024]
[1644266848385,18.8005,119.58,119.49,2.14793471]
[1644266848587,35.87157342,119.57,119.5,43.89716554]
[1644266848790,36.12157342,119.57,119.5,44.14716554]
[1644266848987,42.12157342,119.57,119.5,44.14716554]
[1644266849388,6.25,119.57,119.5,44.14716554]
[1644266849591,18.5505,119.58,119.5,44.14716554]
[1644266849889,2.9024749,119.59,119.5,58.81913168]
[1644266850090,2.9024749,119.59,119.51,11.18719411]
[1644266850288,2.9024749,119.59,119.51,11.43719411]
[1644266850490,2.9024749,119.59,119.52,50.78174534]
[1644266850689,2.9024749,119.59,119.54,47.14467801]
[1644266850889,2.9024749,119.59,119.55,12.5422]
[1644266851091,2.9024749,119.59,119.56,48.11300935]
[1644266851296,2.9024749,119.59,119.56,48.36300935]
[1644266851490,2.9024749,119.59,119.57,6.06439994]
[1644266851691,2.9024749,119.59,119.58,42.48951864]
[1644266852092,2.9024749,119.59,119.57,6.06439994]
[1644266852692,24.4149,119.65,119.54,23.1263]
[1644266852893,24.4149,119.65,119.54,23.3523]
[1644266853093,58.38023582,119.64,119.55,36.7227482]
[1644266853293,58.63023582,119.64,119.55,36.9727482]
[1644266853497,64.63023582,119.64,119.55,36.9727482]
[1644266855794,46.08493582,119.64,119.56,2.12306614]
[1644266855994,24.4149,119.65,119.56,2.12306614]
[1644266855995,24.4149,119.65,119.57,41.4850657]
[1644266856194,1.17613266,119.68,119.57,54.2759657]
[1644266856394,24.8024,119.69,119.58,24.81066614]
[1644266856395,25.97853266,119.69,119.58,24.81066614]
[1644266856598,24.8024,119.69,119.58,30.81066614]
[1644266856798,24.8024,119.69,119.59,2.12306614]
[1644266856996,42.21339593,119.68,119.6,34.67433585]
[1644266857195,42.21339593,119.68,119.6,53.46163585]
[1644266857596,42.46339593,119.68,119.6,34.92433585]
[1644266858196,55.00359593,119.68,119.6,34.92433585]
[1644266858396,55.00359593,119.68,119.58,22.6876]
[1644266858604,61.00359593,119.68,119.57,16.7194]
[1644266858799,65.18259593,119.68,119.57,4.179]
[1644266858999,79.51938364,119.68,119.57,4.179]
[1644266859404,79.51938364,119.68,119.58,40.69150561]
[1644266859600,75.34038364,119.68,119.58,40.69150561]
[1644266860101,61.00359593,119.68,119.58,42.81457175]
[1644266860303,42.46339593,119.68,119.58,48.81457175]
[1644266860701,42.46339593,119.68,119.58,49.06457175]
[1644266861206,42.46339593,119.68,119.6,46.63081171]
[1644266861403,42.46339593,119.68,119.59,22.5084]
[1644266861603,42.46339593,119.68,119.59,22.7584]
[1644266862002,42.46339593,119.68,119.59,16.22]
[1644266862606,42.46339593,119.68,119.59,0.25]
[1644266862807,55.00359593,119.68,119.58,43.60288026]
[1644266863005,55.00359593,119.68,119.58,6.0]
[1644266863206,55.00359593,119.68,119.57,28.6558]
[1644266863207,61.00359593,119.68,119.57,28.6558]